fUST/lending_fUST_20241121
["ID","MTS","AMOUNT","RATE_DAILY","PERIOD"]
[342905687,1732200639716,-500.0,0.00022465,2]
[342905689,1732200639725,-500.0,0.00022465,2]
[342905691,1732200639735,-382.91477633,0.00022465,2]
[342905693,1732200639746,-500.0,0.00022465,2]
[342905695,1732200639756,-1155.56,0.00022465,2]
[342905697,1732200639766,-500.0,0.00022465,2]
[342905699,1732200639776,-2432.92,0.00022465,2]
[342905701,1732200639786,-500.0,0.00022465,2]
[342905703,1732200639795,-500.0,0.00022465,2]
[342905705,1732200639805,-500.0,0.00022465,2]
[342905707,1732200639815,-500.0,0.00022465,2]
[342905709,1732200639825,-500.0,0.00022465,2]
[342905711,1732200639835,-680.26,0.00022465,2]
[342905713,1732200639849,-500.0,0.00022465,2]
[342905715,1732200639859,-500.0,0.00022465,2]
[342905717,1732200639869,-1175.23,0.00022465,2]
[342905719,1732200639879,-616.6,0.00022465,2]
[342905721,1732200639888,-1310.86,0.00022465,2]
[342905723,1732200639898,-550.87,0.00022465,2]
[342905725,1732200639907,-500.0,0.00022465,2]
[342905727,1732200639917,-500.0,0.00022465,2]
[342905729,1732200639927,-500.0,0.00022465,2]
[342905731,1732200639936,-765.85,0.00022465,2]
[342905733,1732200639946,-500.0,0.00022465,2]
[342905736,1732200639956,-500.0,0.00022465,2]
[342905738,1732200639966,-500.0,0.00022465,2]
[342905739,1732200639976,-500.0,0.00022465,2]
[342905741,1732200639986,-500.0,0.00022465,2]
[342905743,1732200639995,-500.0,0.00022465,2]
[342905745,1732200640005,-500.0,0.00022465,2]
[342905747,1732200640014,-500.0,0.00022465,2]
[342905749,1732200640024,-500.0,0.00022465,2]
[342905751,1732200640033,-789.24,0.00022465,2]
[342905753,1732200640043,-737.63,0.00022465,2]
[342905755,1732200640053,-655.02,0.00022465,2]
[342905758,1732200640063,-500.0,0.00022465,2]
[342905760,1732200640075,-1000.0,0.00022465,2]
[342905761,1732200640085,-500.0,0.00022465,2]
[342905764,1732200640098,-1193.82,0.00022465,2]
[342905766,1732200640107,-886.97,0.00022465,2]
[342905768,1732200640118,-500.0,0.00022465,2]
[342905770,1732200640129,-770.17,0.00022465,2]
[342905772,1732200640139,-500.0,0.00022465,2]
[342905774,1732200640149,-500.0,0.00022465,2]
[342905775,1732200640158,-500.0,0.00022465,2]
[342905777,1732200640167,-584.1050032,0.00022465,2]
[342905779,1732200640177,-500.0,0.00022465,2]
[342905782,1732200640187,-1753.88,0.00022465,2]
[342905783,1732200640200,-500.0,0.00022465,2]
[342905786,1732200640210,-1377.26,0.00022465,2]
[342905787,1732200640219,-584.56334238,0.00022465,2]
[342905789,1732200640228,-500.0,0.00022465,2]
[342905792,1732200640239,-657.32,0.00022465,2]
[342905794,1732200640248,-1508.12,0.00022465,2]
[342905796,1732200640258,-1026.92,0.00022465,2]
[342905797,1732200640267,-290.79132503,0.00022465,2]
[342905799,1732200640276,-172.38775681,0.00022465,2]
[342905801,1732200640286,-500.0,0.00022465,2]
[342905803,1732200640295,-500.0,0.00022465,2]
[342905805,1732200640305,-201.03674304,0.00022465,2]
[342905808,1732200640314,-851.18,0.00022465,2]
[342905810,1732200640324,-1370.61,0.00022465,2]
[342905811,1732200640334,-1211.86,0.00022465,2]
[342905813,1732200640348,-500.0,0.00022465,2]
[342905815,1732200640358,-795.82,0.00022465,2]
[342905817,1732200640368,-653.45,0.00022465,2]
[342905823,1732200640410,-1390.24,0.00022465,2]
[342905825,1732200640420,-500.0,0.00022465,2]
[342905827,1732200640430,-500.0,0.00022465,2]
[342905829,1732200640439,-500.0,0.00022465,2]
[342905831,1732200640449,-645.33,0.00022465,2]
[342905833,1732200640459,-500.0,0.00022465,2]
[342905835,1732200640469,-500.0,0.00022465,2]
[342905837,1732200640478,-500.0,0.00022465,2]
[342905839,1732200640487,-500.0,0.00022465,2]
[342905841,1732200640497,-500.0,0.00022465,2]
[342905843,1732200640506,-500.0,0.00022465,2]
[342905845,1732200640515,-500.0,0.00022465,2]
[342905847,1732200640524,-928.36,0.00022465,2]
[342905849,1732200640534,-574.43,0.00022465,2]
[342905851,1732200640544,-619.54,0.00022465,2]
[342905852,1732200640553,-656.62,0.00022465,2]
[342905854,1732200640562,-500.0,0.00022465,2]
[342905856,1732200640571,-793.51,0.00022465,2]
[342905858,1732200640580,-500.0,0.00022465,2]
[342905860,1732200640590,-568.25,0.00022465,2]
[342905862,1732200640608,-534.73,0.00022465,2]
[342905864,1732200640618,-500.0,0.00022465,2]
[342905866,1732200640627,-500.0,0.00022465,2]
[342905868,1732200640636,-509.23,0.00022465,2]
[342905870,1732200640645,-1296.98,0.00022465,2]
[342905872,1732200640653,-1003.66,0.00022465,2]
[342905874,1732200640662,-981.68,0.00022465,2]
[342905876,1732200640671,-927.61,0.00022465,2]
[342905878,1732200640680,-500.0,0.00022465,2]
[342905880,1732200640689,-500.0,0.00022465,2]
[342905881,1732200640699,-925.44,0.00022465,2]
[342905882,1732200640708,-500.0,0.00022465,2]
[342905883,1732200640717,-752.78,0.00022465,2]
[342905884,1732200640726,-500.23,0.00022465,2]
[342905885,1732200640735,-535.24,0.00022465,2]
[342905886,1732200640744,-505.75481237,0.00022465,2]
[342905887,1732200640754,-500.0,0.00022465,2]
[342905888,1732200640763,-1249.29,0.00022465,2]
[342905889,1732200640773,-1383.2,0.00022465,2]
[342905890,1732200640782,-701.33,0.00022465,2]
[342905891,1732200640791,-500.0,0.00022465,2]
[342905892,1732200640801,-826.31,0.00022465,2]
[342905893,1732200640810,-1189.47,0.00022465,2]
[342905894,1732200640819,-500.0,0.00022465,2]
[342905895,1732200640828,-500.0,0.00022465,2]
[342905896,1732200640838,-500.0,0.00022465,2]
[342905897,1732200640852,-10039.04,0.00022465,2]
[342905898,1732200640862,-807.4,0.00022465,2]
[342905899,1732200640871,-1630.93,0.00022465,2]
[342905900,1732200640880,-795.38,0.00022465,2]
[342905901,1732200640889,-500.0,0.00022465,2]
[342905902,1732200640899,-500.0,0.00022465,2]
[342905904,1732200640908,-500.0,0.00022465,2]
[342905906,1732200640917,-5687.01,0.00022465,2]
[342905908,1732200640927,-500.0,0.00022465,2]
[342905909,1732200640936,-1357.59,0.00022465,2]
[342905910,1732200640945,-500.0,0.00022465,2]
[342905912,1732200640954,-500.0,0.00022465,2]
[342905914,1732200640963,-4042.62,0.00022465,2]
[342905916,1732200640972,-32605.67,0.00022465,2]
[342905918,1732200640981,-500.0,0.00022465,2]
[342905919,1732200640990,-594.83,0.00022465,2]
[342905921,1732200640999,-634.91,0.00022465,2]
[342905923,1732200641008,-500.0,0.00022465,2]
[342905925,1732200641017,-500.0,0.00022465,2]
[342905927,1732200641026,-200.0,0.00022465,2]
[342905929,1732200641036,-500.0,0.00022465,2]
[342905931,1732200641045,-500.0,0.00022465,2]
[342905933,1732200641055,-505.73,0.00022465,2]
[342905935,1732200641064,-858.69,0.00022465,2]
[342905937,1732200641078,-612.48,0.00022465,2]
[342905939,1732200641087,-2090.7,0.00022465,2]
[342905941,1732200641101,-5650.4,0.00022465,2]
[342905943,1732200641111,-604.76,0.00022465,2]
[342905945,1732200641119,-500.0,0.00022465,2]
[342905947,1732200641128,-3018.72,0.00022465,2]
[342905949,1732200641138,-500.0,0.00022465,2]
[342905951,1732200641147,-500.0,0.00022465,2]
[342905953,1732200641156,-500.0,0.00022465,2]
[342905955,1732200641165,-1242.48,0.00022465,2]
[342905957,1732200641175,-500.0,0.00022465,2]
[342905959,1732200641184,-7102.02,0.00022465,2]
[342905961,1732200641193,-500.0,0.00022465,2]
[342905963,1732200641202,-731.24,0.00022465,2]
[342905965,1732200641211,-500.0,0.00022465,2]
[342905967,1732200641220,-500.0,0.00022465,2]
[342905969,1732200641229,-1955.78,0.00022465,2]
[342905971,1732200641238,-1391.16,0.00022465,2]
[342905973,1732200641247,-1504.17,0.00022465,2]
[342905975,1732200641257,-500.0,0.00022465,2]
[342905977,1732200641266,-500.0,0.00022465,2]
[342905979,1732200641275,-1389.53,0.00022465,2]
[342905981,1732200641284,-500.0,0.00022465,2]
[342905983,1732200641293,-500.0,0.00022465,2]
[342905985,1732200641303,-500.0,0.00022465,2]
[342905987,1732200641312,-1229.83,0.00022465,2]
[342905989,1732200641321,-1659.72,0.00022465,2]
[342905991,1732200641331,-694.49,0.00022465,2]
[342905993,1732200641340,-500.0,0.00022465,2]
[342905995,1732200641353,-665.48,0.00022465,2]
[342905997,1732200641362,-761.08,0.00022465,2]
[342905999,1732200641371,-500.0,0.00022465,2]
[342906001,1732200641381,-851.55,0.00022465,2]
[342906004,1732200641390,-3540.28,0.00022465,2]
[342906006,1732200641399,-237.0,0.00022489,3]
[342906008,1732200641409,-151.0,0.000225,7]
[342906010,1732200641419,-155.80361875,0.00022539,2]
[342906012,1732200641428,-3072.71930163,0.00022589,2]
[342906014,1732200641437,-151.0,0.000226,5]
[342906016,1732200641447,-770.4349,0.000226,2]
[342906018,1732200641456,-1040.0,0.00022721,2]
[342906020,1732200641466,-509.16659253,0.00022721,2]
[342906022,1732200641475,-1000.0,0.00022721,2]
[342906024,1732200641484,-1000.0,0.00022721,2]
[342906026,1732200641493,-912.49063433,0.00022721,2]
[342906028,1732200641502,-500.0,0.00022739,2]
[342906030,1732200641512,-500.0,0.00022739,2]
[342906032,1732200641521,-500.0,0.00022739,2]
[342906034,1732200641531,-500.0,0.00022739,2]
[342906036,1732200641540,-500.0,0.00022739,2]
[342906038,1732200641550,-500.0,0.00022739,2]
[342906040,1732200641559,-830.16,0.00022739,2]
[342906042,1732200641569,-500.0,0.00022739,2]
[342906044,1732200641578,-1591.45,0.00022739,2]
[342906046,1732200641587,-500.0,0.00022739,2]
[342906048,1732200641598,-500.0,0.00022739,2]
[342906050,1732200641608,-274.23845377,0.00022739,2]
[342906052,1732200641618,-500.0,0.00022739,2]
[342906054,1732200641627,-500.0,0.00022739,2]
[342906056,1732200641636,-500.0,0.00022739,2]
[342906058,1732200641645,-1349.72,0.00022739,2]
[342906060,1732200641654,-532.05,0.00022739,2]
[342906062,1732200641664,-500.0,0.00022739,2]
[342906064,1732200641673,-526.2,0.00022739,2]
[342906066,1732200641682,-500.0,0.00022739,2]
[342906068,1732200641691,-500.0,0.00022739,2]
[342906070,1732200641701,-500.0,0.00022739,2]
[342906072,1732200641710,-500.0,0.00022739,2]
[342906074,1732200641719,-500.0,0.00022739,2]
[342906076,1732200641729,-505.05,0.00022739,2]
[342906078,1732200641739,-753.89,0.00022739,2]
[342906080,1732200641748,-525.0,0.00022739,2]
[342906082,1732200641758,-500.0,0.00022739,2]
[342906084,1732200641768,-271.95581902,0.00022739,2]
[342906086,1732200641778,-500.0,0.00022739,2]
[342906088,1732200641787,-500.0,0.00022739,2]
[342906091,1732200641797,-791.56,0.00022739,2]
[342906093,1732200641807,-568.28,0.00022739,2]
[342906095,1732200641816,-500.0,0.00022739,2]
[342906097,1732200641826,-500.0,0.00022739,2]
[342906099,1732200641835,-500.0,0.00022739,2]
[342906101,1732200641847,-500.0,0.00022739,2]
[342906103,1732200641857,-867.92,0.00022739,2]
[342906105,1732200641866,-500.0,0.00022739,2]
[342906107,1732200641876,-500.0,0.00022739,2]
[342906109,1732200641885,-500.0,0.00022739,2]
[342906111,1732200641895,-500.0,0.00022739,2]
[342906113,1732200641905,-1155.56,0.00022739,2]
[342906115,1732200641914,-500.0,0.00022739,2]
[342906117,1732200641924,-2432.92,0.00022739,2]
[342906119,1732200641934,-500.0,0.00022739,2]
[342906120,1732200641943,-500.0,0.00022739,2]
[342906122,1732200641953,-500.0,0.00022739,2]
[342906125,1732200641962,-500.0,0.00022739,2]
[342906127,1732200641972,-500.0,0.00022739,2]
[342906129,1732200641982,-680.26,0.00022739,2]
[342906131,1732200641991,-500.0,0.00022739,2]
[342906133,1732200642001,-500.0,0.00022739,2]
[342906135,1732200642011,-1175.23,0.00022739,2]
[342906136,1732200642021,-616.6,0.00022739,2]
[342906137,1732200642031,-1310.86,0.00022739,2]
[342906138,1732200642040,-550.87,0.00022739,2]
[342906139,1732200642050,-500.0,0.00022739,2]
[342906140,1732200642060,-500.0,0.00022739,2]
[342906141,1732200642070,-500.0,0.00022739,2]
[342906142,1732200642082,-765.85,0.00022739,2]
[342906143,1732200642093,-500.0,0.00022739,2]
[342906144,1732200642104,-500.0,0.00022739,2]
[342906145,1732200642113,-547.21289105,0.00022739,2]
[342906146,1732200642123,-500.0,0.00022739,2]
[342906147,1732200642133,-500.0,0.00022739,2]
[342906148,1732200642143,-500.0,0.00022739,2]
[342906149,1732200642154,-500.0,0.00022739,2]
[342906150,1732200642163,-401.27364649,0.00022739,2]
[342906151,1732200642173,-500.0,0.00022739,2]
[342906152,1732200642182,-789.24,0.00022739,2]
[342906153,1732200642192,-737.63,0.00022739,2]
[342906154,1732200642201,-655.02,0.00022739,2]
[342906155,1732200642211,-500.0,0.00022739,2]
[342906156,1732200642221,-1000.0,0.00022739,2]
[342906157,1732200642230,-500.0,0.00022739,2]
[342906158,1732200642240,-1193.82,0.00022739,2]
[342906159,1732200642249,-886.97,0.00022739,2]
[342906160,1732200642259,-500.0,0.00022739,2]
[342906161,1732200642268,-770.17,0.00022739,2]
[342906162,1732200642278,-500.0,0.00022739,2]
[342906163,1732200642287,-268.93949894,0.00022739,2]
[342906164,1732200642297,-309.42007858,0.00022739,2]
[342906165,1732200642307,-500.0,0.00022739,2]
[342906166,1732200642317,-1753.88,0.00022739,2]
[342906167,1732200642327,-500.0,0.00022739,2]
[342906168,1732200642337,-1377.26,0.00022739,2]
[342906169,1732200642350,-500.0,0.00022739,2]
[342906170,1732200642360,-657.32,0.00022739,2]
[342906171,1732200642369,-1508.12,0.00022739,2]
[342906172,1732200642379,-1026.92,0.00022739,2]
[342906173,1732200642388,-500.0,0.00022739,2]
[342906174,1732200642398,-500.0,0.00022739,2]
[342906175,1732200642408,-851.18,0.00022739,2]
[342906176,1732200642417,-1370.61,0.00022739,2]
[342906177,1732200642427,-1211.86,0.00022739,2]
[342906178,1732200642436,-500.0,0.00022739,2]
[342906179,1732200642446,-795.82,0.00022739,2]
[342906180,1732200642456,-653.45,0.00022739,2]
[342906181,1732200642466,-1390.24,0.00022739,2]
[342906182,1732200642476,-500.0,0.00022739,2]
[342906183,1732200642486,-500.0,0.00022739,2]
[342906184,1732200642496,-500.0,0.00022739,2]
[342906185,1732200642505,-645.33,0.00022739,2]
[342906186,1732200642515,-500.0,0.00022739,2]
[342906188,1732200642524,-500.0,0.00022739,2]
[342906189,1732200642534,-500.0,0.00022739,2]
[342906190,1732200642543,-500.0,0.00022739,2]
[342906191,1732200642553,-500.0,0.00022739,2]
[342906192,1732200642563,-500.0,0.00022739,2]
[342906193,1732200642573,-500.0,0.00022739,2]
[342906194,1732200642583,-928.36,0.00022739,2]
[342906195,1732200642594,-574.43,0.00022739,2]
[342906196,1732200642603,-619.54,0.00022739,2]
[342906197,1732200642613,-656.62,0.00022739,2]
[342906201,1732200642623,-500.0,0.00022739,2]
[342906202,1732200642632,-793.51,0.00022739,2]
[342906205,1732200642642,-500.0,0.00022739,2]
[342906208,1732200642652,-568.25,0.00022739,2]
[342906210,1732200642662,-534.73,0.00022739,2]
[342906212,1732200642671,-317.86171812,0.00022739,2]
[342906213,1732200642682,-500.0,0.00022739,2]
[342906214,1732200642691,-509.23,0.00022739,2]
[342906215,1732200642700,-1296.98,0.00022739,2]
[342906216,1732200642710,-1003.66,0.00022739,2]
[342906218,1732200642720,-981.68,0.00022739,2]
[342906219,1732200642730,-927.61,0.00022739,2]
[342906220,1732200642740,-500.0,0.00022739,2]
[342906221,1732200642750,-925.44,0.00022739,2]
[342906222,1732200642760,-500.0,0.00022739,2]
[342906223,1732200642770,-752.78,0.00022739,2]
[342906224,1732200642780,-500.23,0.00022739,2]
[342906225,1732200642790,-535.24,0.00022739,2]
[342906226,1732200642799,-500.0,0.00022739,2]
[342906227,1732200642810,-1249.29,0.00022739,2]
[342906229,1732200642819,-1383.2,0.00022739,2]
[342906231,1732200642829,-701.33,0.00022739,2]
[342906232,1732200642838,-500.0,0.00022739,2]
[342906234,1732200642851,-826.31,0.00022739,2]
[342906236,1732200642860,-1189.47,0.00022739,2]
[342906238,1732200642870,-500.0,0.00022739,2]
[342906239,1732200642880,-500.0,0.00022739,2]
[342906240,1732200642890,-500.0,0.00022739,2]
[342906241,1732200642899,-10039.04,0.00022739,2]
[342906242,1732200642909,-807.4,0.00022739,2]
[342906244,1732200642919,-1630.93,0.00022739,2]
[342906246,1732200642928,-795.38,0.00022739,2]
[342906248,1732200642939,-500.0,0.00022739,2]
[342906250,1732200642949,-500.0,0.00022739,2]
[342906252,1732200642959,-500.0,0.00022739,2]
[342906255,1732200642969,-5687.01,0.00022739,2]
[342906256,1732200642979,-500.0,0.00022739,2]
[342906258,1732200642989,-1357.59,0.00022739,2]
[342906260,1732200642999,-500.0,0.00022739,2]
[342906262,1732200643009,-4042.62,0.00022739,2]
[342906264,1732200643019,-500.0,0.00022739,2]
[342906266,1732200643030,-32605.67,0.00022739,2]
[342906269,1732200643039,-500.0,0.00022739,2]
[342906270,1732200643049,-594.83,0.00022739,2]
[342906276,1732200643173,-634.91,0.00022739,2]
[342906278,1732200643183,-500.0,0.00022739,2]
[342906280,1732200643193,-500.0,0.00022739,2]
[342906282,1732200643202,-200.0,0.00022739,2]
[342906284,1732200643211,-500.0,0.00022739,2]
[342906286,1732200643220,-500.0,0.00022739,2]
[342906287,1732200643229,-505.73,0.00022739,2]
[342906289,1732200643238,-858.69,0.00022739,2]
[342906291,1732200643247,-612.48,0.00022739,2]
[342906293,1732200643256,-2090.7,0.00022739,2]
[342906295,1732200643265,-5650.4,0.00022739,2]
[342906297,1732200643274,-604.76,0.00022739,2]
[342906299,1732200643283,-500.0,0.00022739,2]
[342906301,1732200643293,-500.0,0.00022739,2]
[342906303,1732200643301,-150.83580587,0.00022739,2]
[342906305,1732200643311,-3018.72,0.00022739,2]
[342906307,1732200643320,-500.0,0.00022739,2]
[342906309,1732200643329,-500.0,0.00022739,2]
[342906311,1732200643338,-500.0,0.00022739,2]
[342906313,1732200643350,-267.19885808,0.00022739,2]
[342906315,1732200643360,-300.0,0.00022739,2]
[342906317,1732200643369,-500.0,0.00022739,2]
[342906319,1732200643378,-155.363401,0.00022739,2]
[342906321,1732200643388,-1242.48,0.00022739,2]
[342906323,1732200643397,-500.0,0.00022739,2]
[342906325,1732200643407,-7102.02,0.00022739,2]
[342906327,1732200643416,-500.0,0.00022739,2]
[342906329,1732200643425,-500.0,0.00022739,2]
[342906331,1732200643435,-500.0,0.00022739,2]
[342906333,1732200643444,-731.24,0.00022739,2]
[342906335,1732200643453,-500.0,0.00022739,2]
[342906337,1732200643463,-500.0,0.00022739,2]
[342906339,1732200643472,-500.0,0.00022739,2]
[342906341,1732200643481,-1955.78,0.00022739,2]
[342906343,1732200643490,-1391.16,0.00022739,2]
[342906345,1732200643499,-1504.17,0.00022739,2]
[342906347,1732200643508,-503.39603982,0.00022739,2]
[342906349,1732200643517,-508.23071748,0.00022739,2]
[342906350,1732200643527,-1389.53,0.00022739,2]
[342906351,1732200643536,-500.0,0.00022739,2]
[342906352,1732200643546,-500.0,0.00022739,2]
[342906353,1732200643555,-500.0,0.00022739,2]
[342906354,1732200643565,-1229.83,0.00022739,2]
[342906355,1732200643574,-1659.72,0.00022739,2]
[342906356,1732200643583,-694.49,0.00022739,2]
[342906357,1732200643597,-500.0,0.00022739,2]
[342906358,1732200643607,-665.48,0.00022739,2]
[342906359,1732200643616,-761.08,0.00022739,2]
[342906360,1732200643625,-196.97201257,0.00022739,2]
[342906361,1732200643635,-500.0,0.00022739,2]
[342906362,1732200643644,-851.55,0.00022739,2]
[342906363,1732200643653,-299.63949024,0.00022739,2]
[342906364,1732200643662,-3540.28,0.00022739,2]
[342906365,1732200643671,-1505.32062865,0.00022758,2]
[342906366,1732200643681,-151.0,0.000228,8]
[342906367,1732200643690,-151.0,0.000229,9]
[342906369,1732200643699,-242.52988357,0.00023,2]
[342906370,1732200643709,-19075.108406,0.00023,2]
[342906371,1732200643719,-504.07,0.00023,10]
[342906372,1732200643729,-500.0,0.00023,10]
[342906373,1732200643739,-160.0,0.00023,2]
[342906374,1732200643748,-202.0,0.00023,2]
[342906375,1732200643757,-200.0,0.00023,2]
[342906376,1732200643766,-500.0,0.00023013,2]
[342906377,1732200643775,-500.0,0.00023013,2]
[342906378,1732200643784,-300.0,0.00023013,2]
[342906379,1732200643793,-500.0,0.00023013,2]
[342906380,1732200643803,-500.0,0.00023013,2]
[342906381,1732200643812,-500.0,0.00023013,2]
[342906382,1732200643821,-500.0,0.00023013,2]
[342906383,1732200643831,-500.0,0.00023013,2]
[342906384,1732200643840,-500.0,0.00023013,2]
[342906385,1732200643853,-500.0,0.00023013,2]
[342906386,1732200643862,-500.0,0.00023013,2]
[342906387,1732200643871,-500.0,0.00023013,2]
[342906388,1732200643881,-830.16,0.00023013,2]
[342906389,1732200643891,-500.0,0.00023013,2]
[342906390,1732200643900,-1591.45,0.00023013,2]
[342906391,1732200643910,-500.0,0.00023013,2]
[342906392,1732200643919,-500.0,0.00023013,2]
[342906393,1732200643928,-500.0,0.00023013,2]
[342906394,1732200643938,-500.0,0.00023013,2]
[342906395,1732200643948,-500.0,0.00023013,2]
[342906396,1732200643957,-1349.72,0.00023013,2]
[342906397,1732200643966,-532.05,0.00023013,2]
[342906398,1732200643975,-500.0,0.00023013,2]
[342906399,1732200643984,-526.2,0.00023013,2]
[342906400,1732200643993,-392.01343059,0.00023013,2]
[342906401,1732200644003,-500.0,0.00023013,2]
[342906402,1732200644013,-500.0,0.00023013,2]
[342906403,1732200644022,-500.0,0.00023013,2]
[342906404,1732200644032,-500.0,0.00023013,2]
[342906405,1732200644041,-505.05,0.00023013,2]
[342906406,1732200644050,-753.89,0.00023013,2]
[342906407,1732200644060,-525.0,0.00023013,2]
[342906408,1732200644070,-500.0,0.00023013,2]
[342906409,1732200644085,-504.08036644,0.00023013,2]
[342906410,1732200644097,-791.56,0.00023013,2]
[342906411,1732200644107,-568.28,0.00023013,2]
[342906412,1732200644116,-500.0,0.00023013,2]
[342906413,1732200644125,-500.0,0.00023013,2]
[342906414,1732200644135,-500.0,0.00023013,2]
[342906415,1732200644144,-500.0,0.00023013,2]
[342906416,1732200644154,-867.92,0.00023013,2]
[342906417,1732200644164,-500.0,0.00023013,2]
[342906418,1732200644173,-500.0,0.00023013,2]
[342906419,1732200644182,-500.0,0.00023013,2]
[342906420,1732200644191,-500.0,0.00023013,2]
[342906421,1732200644200,-1155.56,0.00023013,2]
[342906422,1732200644209,-500.0,0.00023013,2]
[342906423,1732200644219,-2432.92,0.00023013,2]
[342906424,1732200644229,-500.0,0.00023013,2]
[342906425,1732200644239,-500.0,0.00023013,2]
[342906426,1732200644248,-500.0,0.00023013,2]
[342906427,1732200644257,-500.0,0.00023013,2]
[342906428,1732200644267,-500.0,0.00023013,2]
[342906429,1732200644276,-680.26,0.00023013,2]
[342906430,1732200644286,-500.0,0.00023013,2]
[342906431,1732200644296,-500.0,0.00023013,2]
[342906432,1732200644306,-1175.23,0.00023013,2]
[342906433,1732200644315,-616.6,0.00023013,2]
[342906434,1732200644325,-1310.86,0.00023013,2]
[342906435,1732200644335,-151.0,0.00023013,7]
[342906436,1732200644346,-550.87,0.00023013,2]
[342906437,1732200644356,-151.0,0.00023013,7]
[342906438,1732200644365,-537.12746257,0.00023013,2]
[342906439,1732200644375,-151.0,0.00023013,7]
[342906440,1732200644384,-500.0,0.00023013,2]
[342906441,1732200644394,-500.0,0.00023013,2]
[342906442,1732200644403,-765.85,0.00023013,2]
[342906443,1732200644412,-500.0,0.00023013,2]
[342906444,1732200644422,-500.0,0.00023013,2]
[342906445,1732200644432,-500.0,0.00023013,2]
[342906446,1732200644441,-500.0,0.00023013,2]
[342906447,1732200644451,-500.0,0.00023013,2]
[342906448,1732200644460,-500.0,0.00023013,2]
[342906449,1732200644470,-500.0,0.00023013,2]
[342906450,1732200644479,-789.24,0.00023013,2]
[342906451,1732200644489,-737.63,0.00023013,2]
[342906452,1732200644499,-655.02,0.00023013,2]
[342906453,1732200644509,-500.0,0.00023013,2]
[342906454,1732200644518,-165.459577,0.00023013,7]
[342906455,1732200644529,-1000.0,0.00023013,2]
[342906456,1732200644538,-500.0,0.00023013,2]
[342906457,1732200644548,-1193.82,0.00023013,2]
[342906458,1732200644557,-886.97,0.00023013,2]
[342906459,1732200644567,-500.0,0.00023013,2]
[342906460,1732200644576,-770.17,0.00023013,2]
[342906461,1732200644586,-151.0,0.00023013,7]
[342906462,1732200644597,-500.0,0.00023013,2]
[342906463,1732200644607,-151.0,0.00023013,7]
[342906464,1732200644617,-151.0,0.00023013,7]
[342906465,1732200644628,-500.0,0.00023013,2]
[342906466,1732200644639,-1753.88,0.00023013,2]
[342906467,1732200644650,-500.0,0.00023013,2]
[342906468,1732200644659,-151.0,0.00023013,7]
[342906469,1732200644669,-1377.26,0.00023013,2]
[342906470,1732200644678,-500.0,0.00023013,2]
[342906471,1732200644689,-657.32,0.00023013,2]
[342906472,1732200644698,-151.0,0.00023013,7]